bitfinex/quotes_ETHUSD_20250213
["timestamp","ask_amount","ask_price","bid_price","bid_amount"]
[1739467842035,2.275,2641.8,2641.2,3.78607]
[1739467842340,2.275,2641.8,2641.4,3.78578]
[1739467842683,7.955028,2642.0,2641.4,3.78578]
[1739467843197,3.78523,2641.9,2641.4,3.78578]
[1739467843340,3.78523,2641.9,2641.2,3.78606]
[1739467843341,3.78533,2641.8,2641.2,3.78606]
[1739467843995,0.92038839,2641.9,2641.2,3.78605]
[1739467844212,4.65829862,2641.9,2641.4,3.78584]
[1739467844344,0.04731977,2641.8,2641.4,3.78584]
[1739467844798,0.8277,2642.0,2641.1,0.8002]
[1739467845030,0.288,2641.9,2641.6,3.78546]
[1739467845215,0.288,2641.9,2641.2,0.95502]
[1739467845416,0.288,2641.9,2641.6,3.7855]
[1739467845931,4.54079457,2642.3,2641.6,0.7817]
[1739467845932,0.7864,2642.3,2641.6,0.7817]
[1739467846137,0.288,2642.2,2641.9,3.78507]
[1739467846715,0.288,2642.2,2642.0,3.78493]
[1739467846936,0.288,2642.2,2642.0,7.56983]
[1739467847110,0.288,2642.2,2642.0,3.7849]
[1739467847309,3.045,2642.7,2642.2,3.78464]
[1739467847516,4.07215,2642.6,2642.1,7.56964]
[1739467847826,0.288,2642.6,2642.2,3.7847]
[1739467848028,0.288,2642.6,2642.1,3.78478]
[1739467848232,4.07225,2642.6,2642.1,3.78478]
[1739467848529,5.27853159,2642.6,2642.1,3.78478]
[1739467848831,3.7844,2642.5,2641.7,12.53533]
[1739467849029,6.05953,2642.4,2641.8,3.78529]
[1739467849216,2.275,2642.4,2641.7,8.75]
[1739467849599,2.275,2642.4,2641.8,3.78529]
[1739467849802,2.275,2642.4,2642.0,3.78497]
[1739467850100,3.78438,2642.5,2642.0,3.78501]
[1739467850340,3.78438,2642.5,2641.9,3.78507]
[1739467850341,3.78444,2642.4,2641.9,3.78507]
[1739467850538,3.7847,2642.3,2641.7,3.78535]
[1739467850708,3.78502,2642.0,2641.5,12.53562]
[1739467850900,3.78502,2642.0,2641.5,8.75]
[1739467850901,3.78501,2642.0,2641.5,8.75]
[1739467851106,3.78502,2642.0,2641.5,12.53571]
[1739467851820,3.78525,2641.9,2641.5,8.75]
[1739467852177,0.7785,2641.8,2641.5,8.75]
[1739467852313,0.288,2641.7,2641.5,12.53572]
[1739467852506,0.288,2641.7,2641.5,8.75]
[1739467853602,0.288,2641.7,2641.5,12.53564]
[1739467853804,0.288,2641.7,2641.5,8.75]
[1739467854243,0.07436589,2641.6,2641.5,8.75]
[1739467854543,0.07436589,2641.6,2641.5,3.78572]
[1739467855442,0.07436589,2641.6,2641.5,5.942869]
[1739467855809,0.288,2641.8,2641.7,3.78544]
[1739467856009,0.8306,2642.1,2641.9,3.78507]
[1739467856310,0.288,2642.0,2641.9,3.78507]
[1739467856842,3.1056,2642.1,2641.9,3.78507]
[1739467857147,0.8306,2642.5,2642.2,3.78464]
[1739467857344,0.38633921,2642.8,2642.2,0.8211]
[1739467857345,0.288,2642.4,2642.2,0.8211]
[1739467857545,0.288,2642.5,2642.4,3.7843]
[1739467858745,0.288,2642.5,2642.2,13.35569]
[1739467858746,3.78445,2642.4,2642.2,8.75]
[1739467859042,8.660018,2642.4,2642.2,8.75]
[1739467859220,4.875458,2642.4,2642.2,8.75]
[1739467859422,1.091008,2642.4,2642.2,12.53464]
[1739467859624,2.563,2642.5,2642.2,12.53464]
[1739467860045,2.563,2642.5,2642.2,8.75]
[1739467860251,3.78458,2642.3,2642.2,8.75]
[1739467860450,2.275,2642.3,2641.7,0.7918]
[1739467860693,3.83211061,2642.2,2641.7,3.78543]
[1739467860888,4.82127567,2642.2,2641.7,3.78543]
[1739467861097,4.82126567,2642.2,2641.7,3.78543]
[1739467861263,2.275,2642.1,2641.7,3.78535]
[1739467861476,2.275,2642.1,2641.8,3.78525]
[1739467861668,2.275,2642.1,2641.7,3.78535]
[1739467861669,2.275,2642.1,2641.5,4.61634]
[1739467861883,2.275,2642.1,2641.4,12.53575]
[1739467861884,3.78522,2641.9,2641.4,12.53575]
[1739467862065,3.78531,2641.8,2641.4,8.75]
[1739467862366,7.5707,2641.8,2641.4,8.75]
[1739467862588,3.78531,2641.8,2641.4,8.75]
[1739467862792,1.15781651,2642.0,2641.4,8.75]
[1739467862990,0.7644,2642.2,2641.8,3.78519]
[1739467863300,0.7644,2642.2,2641.8,7.57038]
[1739467863505,4.07289,2642.1,2641.6,3.78547]
[1739467863667,0.288,2642.1,2641.7,3.78539]
[1739467863872,0.288,2642.1,2641.7,3.78537]
[1739467864052,0.288,2642.1,2641.6,3.78547]
[1739467864258,1.377679,2642.1,2641.7,3.78543]
[1739467864571,3.652679,2642.1,2641.5,3.78563]
[1739467864770,3.7851,2642.0,2641.5,3.78563]
[1739467864968,3.78512,2642.0,2641.5,3.78563]
[1739467865494,0.288,2642.1,2641.6,3.78555]
[1739467865685,0.288,2642.1,2641.8,3.78529]
[1739467865867,0.288,2642.1,2641.9,3.7851]
[1739467866072,0.288,2642.1,2641.8,3.78528]
[1739467866409,0.8093,2642.5,2642.2,3.78461]
[1739467866568,4.07247,2642.4,2642.0,3.78493]
[1739467866775,3.78459,2642.3,2641.7,3.78542]
[1739467866986,4.5944,2642.0,2641.5,3.78566]
[1739467867306,0.04731878,2641.9,2641.5,3.78566]
[1739467867868,6.10748878,2641.9,2641.3,3.78598]
[1739467868065,6.06038,2641.8,2641.3,3.78593]
[1739467868292,7.125865,2641.8,2641.3,3.78593]
[1739467868613,7.125865,2641.8,2641.3,3.78592]
[1739467868827,3.340485,2641.8,2641.2,5.25]
[1739467869030,3.0843,2642.0,2641.7,3.78536]
[1739467869337,0.288,2641.9,2641.7,3.78537]
[1739467870056,0.288,2641.9,2641.8,3.78529]
[1739467870182,0.63949018,2642.2,2641.5,0.7584]
[1739467870382,0.288,2642.1,2642.0,3.78494]
[1739467870582,0.7973,2642.5,2642.2,3.78471]
[1739467870856,4.58102,2642.9,2642.4,3.78443]
[1739467871155,0.288,2642.8,2642.5,3.78427]
[1739467871295,0.288,2642.8,2642.6,3.78411]
[1739467871641,0.288,2642.8,2642.3,8.3976]
[1739467871846,0.67133294,2642.8,2642.0,9.5141]
[1739467872142,0.288,2642.8,2642.4,3.78431]
[1739467872864,0.288,2642.8,2642.6,3.78413]
[1739467872999,0.288,2642.9,2642.8,3.78382]
[1739467873187,0.288,2642.9,2642.5,0.8215]
[1739467873188,8.279,2643.4,2642.9,3.78364]
[1739467873387,0.288,2643.3,2642.9,3.78364]
[1739467873894,6.8223,2643.4,2642.6,8.75]
[1739467873895,0.288,2643.2,2642.6,8.75]
[1739467874093,0.288,2643.2,2643.1,3.78343]
[1739467874863,4.6882,2643.5,2643.1,3.78343]
[1739467875191,0.35766162,2643.4,2643.2,3.78317]
[1739467875683,0.06966162,2643.4,2643.3,3.78314]
[1739467875820,0.06966162,2643.4,2643.3,12.53314]
[1739467876027,0.06966162,2643.4,2643.3,14.164771]
[1739467876336,4.6882,2643.5,2643.4,3.783]
[1739467877520,4.6882,2643.5,2643.3,14.164771]
[1739467877843,4.6882,2643.5,2643.3,8.75]
[1739467880363,4.6882,2643.5,2643.3,3.78314]
[1739467880561,4.6882,2643.5,2643.2,8.75]
[1739467881664,4.6882,2643.5,2643.2,12.53328]
[1739467882163,4.6882,2643.5,2643.3,3.78303]
[1739467882465,4.6882,2643.5,2643.4,3.783]
[1739467882625,4.6882,2643.5,2643.4,4.5604]
[1739467883635,4.75946286,2643.5,2643.4,4.5604]
[1739467883962,4.75947802,2643.5,2643.4,4.5604]
[1739467885446,4.6882,2643.5,2643.4,21.5604]
[1739467885654,4.6882,2643.5,2643.4,24.094743]
[1739467886445,4.75957662,2643.5,2643.4,17.783]
[1739467887064,4.75957662,2643.5,2643.4,20.783]
[1739467887249,4.75957662,2643.5,2643.4,21.5971]
[1739467887454,4.6882,2643.5,2643.4,21.5971]
[1739467888037,4.6882,2643.5,2643.4,20.783]
[1739467888260,4.76024396,2643.5,2643.4,23.321013]
[1739467888644,4.76024396,2643.5,2643.4,24.087713]
[1739467888967,4.6882,2643.5,2643.4,24.087713]
[1739467889173,2.79677,2643.5,2643.4,28.38169686]
[1739467889669,0.288,2644.3,2644.2,3.78186]
[1739467890081,0.36004396,2644.3,2644.2,3.78186]
[1739467890278,0.36004396,2644.3,2644.1,3.78197]
[1739467890948,0.36004396,2644.3,2644.2,3.78186]
[1739467891150,0.36004396,2644.3,2644.1,10.531981]
[1739467891386,0.36004396,2644.3,2644.2,3.78186]
[1739467891685,0.07204396,2644.3,2644.2,3.78186]
[1739467892063,0.287,2644.5,2644.4,3.78157]
[1739467892279,0.287,2644.5,2644.2,3.78186]
[1739467892436,0.287,2644.5,2644.2,0.6749971]
[1739467892636,4.06843,2644.5,2644.1,5.938331]
[1739467892982,4.06846,2644.5,2644.1,2.156411]
[1739467893281,3.78178,2644.3,2643.9,14.0]
[1739467893981,4.57289,2644.4,2643.9,17.78227]
[1739467894176,4.57289,2644.4,2643.9,14.0]
[1739467894334,3.78175,2644.3,2643.9,14.0]
[1739467894539,3.78173,2644.3,2643.9,14.0]
[1739467895022,3.78192,2644.2,2643.9,14.0]
[1739467895320,3.78172,2644.3,2643.8,3.78242]
[1739467895529,3.78194,2644.2,2643.6,12.5326]
[1739467895680,3.78194,2644.2,2643.7,3.78257]
[1739467896030,4.57296,2644.4,2643.6,12.5326]
[1739467896031,0.7913,2644.4,2643.6,8.75]
[1739467896187,0.7913,2644.4,2644.2,3.78184]
[1739467896380,0.7913,2644.4,2644.1,3.782]
[1739467896755,0.7502,2644.7,2644.3,3.78171]
[1739467897088,0.287,2644.6,2644.2,3.78177]
[1739467897279,4.11556919,2644.6,2644.1,4.538404]
[1739467897499,3.78166,2644.4,2643.9,3.78221]
[1739467897835,2.60926919,2644.6,2643.8,12.53242]
[1739467897836,4.56604,2644.3,2643.8,12.53242]
[1739467897995,3.78193,2644.2,2643.8,12.53242]
[1739467898169,3.78208,2644.1,2643.8,8.75]
[1739467898368,4.56666,2643.9,2643.4,3.7829]
[1739467898627,4.56659,2643.9,2643.3,3.78314]
[1739467898923,4.56659,2643.9,2643.4,3.78288]
[1739467899126,0.07300666,2643.8,2643.2,3.7684]
[1739467899286,0.287,2643.7,2643.6,3.78264]
[1739467899627,0.287,2643.9,2643.4,3.783]
[1739467899770,0.287,2643.9,2643.3,4.93923691]
[1739467899771,0.07300666,2643.7,2643.3,5.03496]
[1739467899971,0.287,2643.9,2643.7,3.78247]
[1739467900424,0.07300666,2643.8,2643.7,3.78247]
[1739467900627,0.07300666,2643.8,2643.6,3.78272]
[1739467900793,0.07300666,2643.8,2643.7,4.160842]
[1739467901164,0.287,2643.9,2643.8,3.78243]
[1739467901371,0.8197,2644.4,2643.9,3.78222]
[1739467901669,0.287,2644.3,2643.8,3.78243]
[1739467901867,4.06883,2644.3,2643.8,7.5647]
[1739467902291,4.60135,2644.4,2643.8,7.5647]
[1739467902292,0.8197,2644.4,2644.3,3.78171]
[1739467902583,0.287,2644.4,2644.3,3.78171]
[1739467902872,0.8176,2644.7,2644.1,0.7587]
[1739467903015,0.287,2644.7,2644.4,3.78156]
[1739467903920,0.287,2644.7,2644.3,3.78158]
[1739467904414,0.693804,2644.7,2644.1,4.54059]
[1739467904771,3.0391,2644.6,2644.0,8.75]
[1739467904975,3.78164,2644.4,2644.0,8.75]
[1739467905129,6.05654,2644.5,2644.0,12.53214]
[1739467905331,0.7641,2644.6,2644.0,12.53214]
[1739467905514,3.7815,2644.5,2644.0,12.5321]
[1739467905917,7.56306,2644.5,2644.0,12.5321]
[1739467906137,3.7815,2644.5,2644.0,12.53213]
[1739467906437,6.0565,2644.5,2644.0,12.53213]
[1739467906635,6.0565,2644.5,2644.0,8.75]
[1739467906974,0.8125,2644.3,2644.0,8.75]
[1739467907138,0.8125,2644.3,2643.9,3.78225]
[1739467907473,0.8125,2644.3,2644.1,3.78187]
[1739467907821,0.287,2644.3,2644.1,3.78187]
[1739467908166,0.287,2644.3,2644.2,3.78186]
[1739467908552,0.287,2644.3,2643.8,3.0]
[1739467908553,0.287,2644.3,2643.9,4.57723]
[1739467908882,0.287,2644.3,2643.9,3.78221]
[1739467909058,0.287,2644.3,2643.8,3.02818997]
[1739467909257,0.287,2644.3,2643.9,0.827819]
[1739467909574,0.287,2644.3,2644.2,3.78186]
[1739467909754,6.05592,2644.9,2644.4,3.78154]
[1739467909956,0.287,2644.8,2644.7,3.78114]
[1739467910618,0.287,2644.8,2644.5,3.78131]
[1739467911335,0.33426377,2644.8,2644.3,3.78159]
[1739467911562,4.06807,2644.8,2644.3,3.78159]
[1739467911872,3.78115,2644.7,2644.2,8.75]
[1739467912239,0.287,2644.8,2644.4,3.7815]
[1739467912440,0.287,2644.8,2644.7,3.78114]
[1739467912961,0.287,2644.8,2644.2,8.75]
[1739467913468,0.287,2644.8,2644.3,3.0]
[1739467913679,0.287,2644.8,2644.5,7.56268]
[1739467914265,0.07328702,2644.7,2644.5,3.78133]
[1739467914466,0.07328702,2644.7,2644.3,6.7816]
[1739467914467,0.07328702,2644.7,2644.4,3.78151]
[1739467914650,0.287,2644.8,2644.3,3.0]
[1739467914651,0.287,2644.8,2644.3,3.78171]
[1739467914992,3.78119,2644.7,2644.2,12.53179]
[1739467915285,3.8544846,2644.7,2644.3,3.78171]
[1739467915953,0.0732946,2644.7,2644.3,3.78171]
[1739467916135,0.0732946,2644.7,2644.5,3.78142]
[1739467916339,0.287,2644.8,2644.3,3.78161]
[1739467916639,3.85436367,2644.7,2644.3,3.78165]
[1739467917795,4.60902,2644.5,2644.0,12.53213]
[1739467918145,0.07333248,2644.4,2644.0,12.53213]
[1739467918479,3.85491248,2644.4,2644.0,8.75]
[1739467918779,0.07333248,2644.4,2644.0,12.53211]
[1739467919139,0.07333248,2644.4,2644.0,8.75]
[1739467919339,3.7818,2644.3,2644.0,8.75]
[1739467919555,0.07330217,2644.2,2644.0,8.75]
[1739467919950,3.7818,2644.3,2644.0,8.75]
[1739467920304,3.7822,2644.0,2643.7,5.25]
[1739467920583,3.7822,2644.0,2643.4,8.75]
[1739467920584,0.35997632,2643.9,2643.4,8.75]
[1739467920906,0.35997632,2643.9,2642.9,5.25]
[1739467920907,3.78267,2643.7,2643.2,3.78326]
[1739467921042,0.8311,2643.6,2643.2,3.78326]
[1739467921242,0.90392475,2643.6,2643.3,3.78314]
[1739467921763,0.90392475,2643.6,2643.2,1.708436]
[1739467921960,0.07282475,2643.6,2643.5,3.78286]
[1739467922155,0.07282475,2643.6,2643.2,5.491616]
[1739467922156,0.07282475,2643.6,2643.2,14.241616]
[1739467922356,3.78258,2643.7,2643.2,8.75]
[1739467922568,3.85556475,2643.6,2643.2,12.53327]
[1739467922743,3.85556475,2643.6,2643.2,8.75]
[1739467922744,4.54795,2643.5,2643.2,8.75]
[1739467922938,0.0723699,2643.4,2643.2,8.75]
[1739467923163,0.0723699,2643.4,2643.1,3.78335]
[1739467923556,0.0723699,2643.4,2642.7,3.7761]
[1739467923557,0.0723699,2643.4,2642.9,3.78358]
[1739467923769,0.0723699,2643.4,2643.0,3.78357]
[1739467924782,0.0723699,2643.4,2643.0,3.78344]
[1739467925550,3.8553699,2643.4,2643.0,3.78344]
[1739467925746,0.0723699,2643.4,2642.7,3.7761]
[1739467925984,0.0723699,2643.4,2643.0,3.7835]
[1739467926352,3.90266221,2643.4,2643.0,3.7835]
[1739467926611,3.90266221,2643.4,2642.8,7.56747]
[1739467926748,3.90266221,2643.4,2642.8,3.78372]
[1739467926951,3.78319,2643.3,2642.8,3.78372]
[1739467927152,4.61146515,2643.2,2642.5,8.75]
[1739467927415,3.78344,2643.1,2642.6,3.78403]
[1739467927565,0.287,2643.0,2642.6,3.78403]
[1739467927965,0.287,2643.0,2642.9,3.78372]
[1739467928600,0.287,2643.0,2642.8,3.78386]
[1739467928906,0.287,2643.0,2642.9,3.78372]
[1739467929085,4.0706,2643.0,2642.5,8.75]
[1739467929406,4.57559,2642.8,2642.5,8.75]
[1739467929611,0.7917,2642.8,2642.4,3.78431]
[1739467929774,0.83900223,2642.8,2642.4,3.78431]
[1739467929989,0.07216515,2642.7,2642.4,3.78431]
[1739467930287,3.85618515,2642.7,2642.0,12.5349]
[1739467930491,0.0473021,2642.6,2642.1,3.78479]
[1739467930787,3.78408,2642.7,2642.2,3.78465]
[1739467930970,0.0718238,2642.5,2642.2,3.78465]
[1739467931192,3.83138539,2642.7,2642.2,7.56929]
[1739467931384,0.0718238,2642.4,2642.3,3.78448]
[1739467931717,4.57558,2642.8,2642.3,3.78448]
[1739467931871,4.57558,2642.8,2642.4,3.7844]
[1739467932075,3.7841,2642.7,2642.2,3.78472]
[1739467932273,3.78415,2642.6,2642.1,3.78483]
[1739467932470,3.78415,2642.6,2642.0,12.53496]
[1739467932691,3.78415,2642.6,2641.8,3.78521]
[1739467932692,3.78459,2642.3,2641.8,3.78521]
[1739467932940,0.04731148,2642.2,2641.6,0.8303]
[1739467933069,4.07194,2642.1,2641.5,3.78561]
[1739467933274,0.287,2642.1,2641.6,6.78557]
[1739467933505,0.287,2642.1,2641.6,6.78551]
[1739467933705,0.33431422,2642.1,2641.6,3.78551]
[1739467933891,0.7994,2642.5,2641.6,5.039111]
[1739467934097,0.287,2642.4,2642.0,3.78491]
[1739467934577,0.287,2642.4,2641.6,5.039031]
[1739467934930,3.78495,2642.1,2641.6,3.78548]
[1739467935175,3.78481,2642.2,2641.6,3.78548]
[1739467935380,3.78459,2642.3,2641.8,3.78522]
[1739467935729,0.287,2642.4,2642.0,3.7849]
[1739467936283,0.287,2642.4,2641.9,3.78514]
[1739467936421,4.07145,2642.4,2641.9,3.78514]
[1739467936621,3.78458,2642.3,2641.9,3.78514]
[1739467936875,3.78458,2642.3,2641.7,3.78533]
[1739467937086,3.78458,2642.3,2641.8,3.78521]
[1739467937586,3.78458,2642.3,2641.8,3.78515]
[1739467937744,0.287,2642.4,2641.9,3.78508]
[1739467937930,4.90645945,2642.4,2641.9,3.78508]
[1739467938288,1.12193945,2642.4,2642.0,3.7849]
[1739467938585,3.78458,2642.3,2641.9,3.78508]
[1739467938803,1.12193945,2642.4,2641.9,3.78503]
[1739467939307,0.7994,2642.5,2642.3,3.78448]
[1739467939508,0.287,2642.3,2641.8,0.8148]
[1739467939716,3.83205304,2642.2,2641.8,3.78528]
[1739467939873,3.83205304,2642.2,2641.7,12.53543]
[1739467940076,3.85529209,2642.1,2641.6,8.039108]
[1739467940503,3.85529209,2642.1,2641.5,9.5648]
[1739467940504,8.38908393,2642.0,2641.5,9.5648]
[1739467940658,3.78537,2641.8,2641.5,8.75]
[1739467940859,3.78545,2641.7,2641.5,8.75]
[1739467941051,3.78545,2641.7,2641.0,3.0]
[1739467941052,0.07032209,2641.7,2641.0,14.7564]
[1739467941258,3.78592,2641.4,2641.0,5.25]
[1739467941578,0.3567224,2641.3,2641.1,3.78629]
[1739467941965,0.3567224,2641.3,2641.1,3.78619]
[1739467942208,0.3567224,2641.3,2641.2,3.78615]
[1739467943023,0.3567224,2641.3,2641.2,4.55605]
[1739467943024,0.287,2641.3,2641.2,4.55605]
[1739467943191,0.287,2641.3,2641.2,5.915284]
[1739467943391,0.7979,2641.8,2641.5,3.78564]
[1739467943596,0.8219,2642.1,2641.7,3.78544]
[1739467943818,0.287,2642.0,2641.7,3.78544]
[1739467944011,0.287,2642.0,2641.0,9.54594322]
[1739467944012,2.275,2641.7,2640.9,0.8054]
[1739467944175,1.09822771,2641.6,2640.8,3.78665]
[1739467944381,3.78597,2641.4,2640.8,3.78665]
[1739467944611,7.57196,2641.4,2640.8,3.78665]
[1739467944820,3.85467188,2641.3,2640.8,3.78665]
[1739467945015,3.85467188,2641.3,2640.7,7.59222]
[1739467945016,3.78618,2641.2,2640.7,7.59222]
[1739467945320,3.78645,2641.0,2640.5,3.78716]
[1739467945837,0.06865188,2640.9,2640.5,3.78705]
[1739467946375,0.06865188,2640.9,2640.4,9.5434]
[1739467946376,3.78682,2640.8,2640.4,8.75]
[1739467946694,0.8128,2640.6,2640.1,0.7865]
[1739467946882,0.8128,2640.6,2639.9,3.78794]
[1739467946883,4.25197971,2640.5,2639.9,3.78794]
[1739467947078,3.78725,2640.5,2640.0,3.0]
[1739467947298,0.06832524,2640.4,2639.9,12.53794]
[1739467947698,3.85572524,2640.4,2639.9,3.78794]
[1739467947907,3.80244,2640.3,2639.5,12.53848]
[1739467948230,0.804,2640.1,2639.6,6.78837]
[1739467948528,0.804,2640.1,2639.7,3.78824]
[1739467948714,0.804,2640.1,2640.0,3.78787]
[1739467948893,0.7593,2640.5,2640.4,3.78729]
[1739467949093,1.0463,2640.5,2640.3,3.78744]
[1739467949473,1.0463,2640.5,2640.3,3.78735]
[1739467949776,0.287,2640.4,2640.3,3.78735]
[1739467949976,0.287,2640.4,2640.2,3.78758]
[1739467950208,0.287,2640.4,2640.0,3.78787]
[1739467950406,0.287,2640.4,2640.0,7.57565]
[1739467950672,0.287,2640.4,2640.3,3.78744]
[1739467950827,0.7974,2640.7,2640.4,3.78718]
[1739467951208,0.287,2640.8,2640.7,3.78687]
[1739467951425,0.287,2641.0,2640.9,3.78649]
[1739467952064,0.287,2641.0,2640.9,3.78658]
[1739467952974,0.8044,2641.4,2641.1,3.78623]
[1739467953277,0.287,2641.2,2640.9,3.7865]
[1739467953568,0.287,2641.2,2641.0,3.78643]
[1739467953769,0.287,2641.2,2640.8,3.78663]
[1739467953954,0.287,2641.2,2640.9,3.78657]
[1739467954154,0.287,2641.2,2641.0,3.78643]
[1739467954857,0.287,2641.2,2640.9,3.78657]
[1739467955479,0.287,2641.2,2640.9,7.57307]
[1739467955682,0.287,2641.2,2641.0,3.78642]
[1739467956173,0.287,2641.2,2640.9,7.573]
[1739467956385,0.287,2641.2,2640.9,3.7865]
[1739467956611,0.287,2641.2,2640.5,9.5762]
[1739467956731,1.54911628,2641.7,2640.6,8.75]
[1739467956919,0.287,2641.8,2641.7,3.78544]
[1739467957122,0.287,2641.8,2641.5,3.78561]
[1739467957757,0.287,2641.8,2641.3,0.7546]
[1739467957957,0.287,2641.8,2641.4,3.78577]
[1739467958162,0.287,2641.8,2641.0,8.75]
[1739467958163,4.07232,2641.8,2641.2,3.78604]
[1739467958357,4.07232,2641.8,2641.3,3.78593]
[1739467958557,4.07232,2641.8,2641.2,3.78604]
[1739467958762,4.57832,2641.6,2641.1,3.78623]
[1739467959186,0.06852274,2641.5,2641.0,4.59672]
[1739467959336,0.06852274,2641.5,2641.1,3.78619]
[1739467959538,3.85428274,2641.5,2641.0,3.78642]
[1739467959735,0.06852274,2641.5,2641.0,3.78642]
[1739467959939,0.06852274,2641.5,2641.2,3.78604]
[1739467960212,0.06852274,2641.5,2641.4,3.78587]
[1739467960339,0.06852274,2641.5,2641.3,3.78593]
[1739467960691,3.78566,2641.6,2641.1,3.78625]
[1739467960826,3.78566,2641.6,2641.0,1.253642]
[1739467960827,0.06874301,2641.4,2641.0,1.253642]
[1739467961032,4.07233,2641.8,2641.2,3.78615]
[1739467961269,0.287,2641.7,2641.3,3.78598]
[1739467961932,0.287,2641.6,2641.5,3.78564]
[1739467962372,0.287,2641.6,2641.3,3.78588]
[1739467962695,0.287,2641.6,2641.3,3.78599]
[1739467962839,0.287,2641.5,2641.1,0.4253642]
[1739467963040,0.287,2641.5,2641.4,3.78587]
[1739467963491,0.287,2641.5,2641.4,4.543058]
[1739467963692,0.287,2641.8,2641.7,3.78544]
[1739467963892,0.287,2641.8,2641.6,3.78558]
[1739467964692,0.7904,2641.7,2641.4,3.78584]
[1739467964993,0.7904,2641.7,2641.5,3.78572]
[1739467965331,0.7904,2641.7,2641.3,12.53589]
[1739467965466,0.7904,2641.7,2641.4,3.78586]
[1739467965668,0.7904,2641.7,2641.4,3.78579]
[1739467965908,0.7904,2641.7,2641.5,3.78566]
[1739467966903,0.7904,2641.7,2641.3,14.73566842]
[1739467967108,4.57586,2641.7,2641.3,8.75]
[1739467967315,3.78559,2641.6,2641.3,8.75]
[1739467967928,7.57137,2641.6,2641.3,8.75]
[1739467968138,3.78587,2641.4,2641.3,8.75]
[1739467968430,4.59717,2641.4,2641.3,8.75]
[1739467969495,4.59717,2641.4,2641.0,3.78643]
[1739467969693,0.04732796,2641.3,2641.0,3.78643]
[1739467969897,2.275,2641.3,2640.8,3.78663]
[1739467970091,0.8113,2641.4,2640.9,3.78648]
[1739467970297,0.8113,2641.4,2641.0,3.78637]
[1739467970493,0.8113,2641.4,2640.7,3.78673]
[1739467970752,3.78609,2641.3,2640.8,3.7867]
[1739467970925,0.8113,2641.4,2641.0,3.78633]
[1739467971242,0.8113,2641.4,2641.0,7.57268]
[1739467971404,3.78601,2641.3,2640.8,3.78665]
[1739467971588,3.78601,2641.3,2640.8,3.78666]
[1739467971789,0.8113,2641.4,2641.0,3.78637]
[1739467972097,4.59723,2641.4,2640.6,3.8195]
[1739467972304,4.59717,2641.4,2640.6,4.580172]
[1739467972503,0.8113,2641.4,2640.6,4.580172]
[1739467972757,0.8113,2641.4,2641.2,3.78604]
[1739467972885,0.8113,2641.4,2641.0,3.78635]
[1739467973087,1.06849051,2641.8,2641.6,3.78558]
[1739467973088,0.8226,2641.7,2641.6,3.78558]
[1739467973284,0.8226,2641.7,2641.5,3.7857]
[1739467973285,0.287,2641.7,2641.5,3.7857]
[1739467974048,1.58241041,2642.0,2641.7,3.78536]
[1739467974248,0.287,2641.8,2641.7,3.78536]
[1739467974385,0.287,2641.8,2641.5,3.78559]
[1739467975299,0.287,2641.8,2641.3,3.78591]
[1739467975523,4.07229,2641.8,2641.3,7.57183]
[1739467975844,0.287,2641.8,2641.5,3.78572]
[1739467976058,0.287,2641.8,2641.3,3.78588]
[1739467976252,0.287,2641.8,2641.1,3.78618]
[1739467976403,7.57098,2641.7,2641.2,3.78607]
[1739467976637,7.57098,2641.7,2641.1,3.78618]
[1739467976638,3.78574,2641.5,2641.0,0.8258]
[1739467976971,4.59938,2641.6,2641.1,3.78623]
[1739467977115,0.8138,2641.6,2641.0,0.8258]
[1739467977315,0.8138,2641.6,2641.3,3.78591]
[1739467977874,0.8321,2641.9,2641.5,3.78572]
[1739467978040,4.07238,2641.8,2641.3,3.78599]
[1739467978365,3.78556,2641.7,2641.1,3.7862]
[1739467978573,3.78563,2641.6,2641.1,3.7862]
[1739467978712,7.85769,2641.8,2641.3,3.78592]
[1739467978912,4.07229,2641.8,2641.1,3.78621]
[1739467979129,3.7856,2641.6,2641.1,3.78621]
[1739467979364,3.0551,2641.5,2640.9,8.75]
[1739467979569,3.0551,2641.5,2641.0,3.78642]
[1739467979717,3.0551,2641.5,2641.1,3.78616]
[1739467979917,0.7801,2641.5,2641.2,3.7861]
[1739467980312,3.0551,2641.5,2640.9,10.45]
[1739467980461,3.78625,2641.2,2640.9,8.75]
[1739467980658,3.83328884,2641.4,2640.9,8.75]
[1739467980659,3.78594,2641.4,2640.9,8.75]
[1739467981066,3.0551,2641.5,2641.1,3.78628]
[1739467981225,0.7801,2641.5,2640.9,8.75]
[1739467981424,0.7801,2641.5,2640.8,0.8145]
[1739467981628,0.771,2642.4,2641.0,0.8145]
[1739467981842,1.02800189,2642.3,2642.0,3.785]
[1739467982042,1.02800189,2642.3,2642.0,3.78489]
[1739467982480,0.771,2642.4,2642.1,3.78479]
[1739467982658,3.70293928,2642.8,2642.3,3.78458]
[1739467982659,0.77033429,2642.8,2642.3,3.78458]
[1739467982984,0.287,2642.3,2642.1,3.78485]
[1739467983294,0.287,2642.3,2642.2,3.78472]
[1739467983875,2.275,2642.9,2642.2,3.78472]